Cogmind - Beta 16.1 @@@ ROGUE MODE // 2026.03.23 @ 17:11:09 Player: r@sin Result: Destroyed by S-43 Plague with Heavy Machine Gun Performance ------------- Evolutions (9) 4500 Regions Visited (13) 2600 Robots Destroyed (15) 75 Value Destroyed (283) 283 Prototype IDs (5) 100 Alien Tech Used (0) 0 Bonus (600) 600 TOTAL SCORE: 8158 Bonus ------- Follower Combat Kills 100 Entered DSFs 500 Cogmind --------- Core Integrity 0/1600 Matter 19/300 Energy 99/100 System Corruption 7% Temperature Cool (0) Movement Core (50) Location -1/Access Parts ------- > --- POWER (2) -------- (None) > --- PROPULSION (9) --- Combat Linear Gravjet > --- UTILITY (12) ----- Enhanced Optical Array Advanced Signal Interpreter Advanced Signal Interpreter Hacking Suite System Shield > --- WEAPON (2) ------- (None) > --- INVENTORY (5) ---- Light Antimatter Reactor Stasis Canceller Linear Accelerator Peak State ------------ > --- POWER ------------ Light Angular Momentum Engine Light Antimatter Reactor > --- PROPULSION ------- VTOL Module VTOL Module Field Propulsion Drive Field Propulsion Drive Impulse Thruster > --- UTILITY ---------- Improved Cooling System Advanced Sensor Array Advanced Signal Interpreter Advanced Transmission Jammer Improved Phase Shifter Improved Light Armor Plating Hacking Suite System Shield > --- WEAPON ----------- Heavy Flail > --- INVENTORY -------- Antigrav System Antigrav System Antigrav System Linear Accelerator [Rating: 77] Favorites ----------- Power Light Angular Momentum Engine Engine Light Angular Momentum Engine Power Core Nuclear Core Reactor Light Antimatter Reactor Propulsion VTOL Module Treads Light Treads Leg Aluminum Leg Hover Unit Combat Linear Gravjet Flight Unit VTOL Module Utility Hacking Suite Device Improved Sensor Array Storage Small Storage Unit Processor Targeting Computer Hackware Hacking Suite Protection Improved Light Armor Plating Weapon Heavy Flail Energy Gun Small Laser Energy Cannon Advanced Beam Cannon Ballistic Gun Light Assault Rifle Ballistic Cannon Linear Accelerator Special Weapon Remote Datajack Impact Weapon Heavy Flail Build | -11 -10 -9 -8 -7 -6 -6 -5 -4 -4 -3 -2 -2 -1 ------- Run | Yrd Mat Mat Mat Fac Fac DSF Fac Fac Ext Res Res Tes Acc Slots Evolved 18 | . . 2 2 2 2 . 2 2 . 2 2 . 2 Power 1 | . . . . . . . 1 . . . . . . Propulsion 7 | . . 2 . 1 . . 1 1 . 1 . . 1 Utility 10 | . . . 2 1 2 . . 1 . 1 2 . 1 Weapon . | . . . . . . . . . . . . . . Parts Attached 63 | 8 3 3 9 3 3 . 6 7 1 7 . . 13 Power 8 | 1 . 1 1 . 1 . . 1 . 1 . . 2 Engine 3 | 1 . . . . 1 . . 1 . . . . . Core 2 | . . 1 1 . . . . . . . . . . Reactor 3 | . . . . . . . . . . 1 . . 2 Propulsion 22 | 2 . 2 4 . . . 2 1 1 2 . . 8 Treads 5 | . . 2 . . . . . . . . . . 3 Leg 2 | 2 . . . . . . . . . . . . . Wheel . | . . . . . . . . . . . . . . Hover 3 | . . . . . . . . 1 . . . . 2 Flight 12 | . . . 4 . . . 2 . 1 2 . . 3 Utility 25 | 3 1 . 3 2 2 . 4 4 . 3 . . 3 Device 11 | 2 . . 1 . 2 . 1 2 . 2 . . 1 Storage 2 | 1 . . . 1 . . . . . . . . . Processor 7 | . 1 . 1 1 . . 1 1 . . . . 2 Hackware 3 | . . . . . . . 1 1 . 1 . . . Protection 2 | . . . 1 . . . 1 . . . . . . Artifact . | . . . . . . . . . . . . . . Weapon 8 | 2 2 . 1 1 . . . 1 . 1 . . . Energy Gun 1 | 1 . . . . . . . . . . . . . Energy Cannon 3 | . 2 . . . . . . 1 . . . . . Ballistic Gun 1 | 1 . . . . . . . . . . . . . Ballistic Cannon 1 | . . . . . . . . . . 1 . . . Launcher . | . . . . . . . . . . . . . . Special Weapon 1 | . . . . 1 . . . . . . . . . Impact Weapon 1 | . . . 1 . . . . . . . . . . Slashing Weapon . | . . . . . . . . . . . . . . Piercing Weapon . | . . . . . . . . . . . . . . Special Melee Weapon . | . . . . . . . . . . . . . . Unidentified Prototypes 3 | . 1 . . . . . 1 . . . . . 1 Parts Lost 30 | . . 5 . . . . . . 6 . 1 1 17 Power 3 | . . 1 . . . . . . 1 . 1 . . Propulsion 18 | . . 4 . . . . . . 3 . . . 11 Utility 7 | . . . . . . . . . 1 . . 1 5 Weapon 2 | . . . . . . . . . 1 . . . 1 Highest Loss Streak 11 | . . 5 . . . . . . 6 . 1 1 11 To Critical Strikes . | . . . . . . . . . . . . . . Average Backups 4 | 3 6 7 2 3 4 4 4 4 4 4 5 2 3 Power . | . 1 . . . . . . . 1 . . . 1 Propulsion 1 | 1 3 4 . . . . . . . 1 3 1 1 Utility 1 | . 1 1 1 2 3 3 3 2 3 1 1 . . Weapon . | . . . . . . 1 1 1 . 1 1 1 . Tool/Special . | . . . . . . . . . . . . . . Unused Backups 20 | . 2 7 1 1 . . 5 . . 1 . 3 . Power 3 | . . 2 . . . . 1 . . . . . . Propulsion 4 | . . . . . . . 1 . . . . 3 . Utility 7 | . . 4 1 . . . 2 . . . . . . Weapon 6 | . 2 1 . 1 . . 1 . . 1 . . . Tool/Special . | . . . . . . . . . . . . . . Average Slot Usage (%) 72 | . 99 92 73 80 80 84 79 80 78 66 68 68 36 Engine 5 | . 14 7 . . 3 6 8 10 7 4 3 . . Core 1 | . . 2 7 7 2 . . . . . . . . Treads 3 | . . 19 . . . . . . . . . . 3 Leg 5 | . 28 19 . . . . . . . . . . . Flight 14 | . . . 33 30 26 26 23 25 22 18 21 21 4 Device 7 | . 2 . 8 7 14 20 13 12 12 14 13 16 2 Storage 2 | . 14 10 . . . . . . . . . . . Processor 11 | . 11 11 10 17 20 20 17 13 15 7 4 4 8 Hackware 5 | . . . . . . . 3 8 10 9 13 13 11 Protection 2 | . . . 6 7 6 4 4 2 1 4 4 4 . Energy Cannon 4 | . 8 20 . . . . . 3 2 . . . . Impact Weapon 2 | . . . 6 7 6 6 5 1 1 3 4 4 . Peak Build Rating 77 | 7 12 16 22 27 39 39 53 67 74 77 74 75 77 Average Rating 37 | 5 8 13 17 24 34 38 41 53 59 61 72 72 47 On Entrance 37 | . 7 12 1 22 27 39 38 48 67 50 74 69 66 Avg Prop Armor Cover (%) 24 | . . 16 9 . . . . 5 5 2 . . 32 Naked Turns . | . . . . . . . . . . . . . . Heaviest Build 31 | 13 18 18 14 17 19 19 20 27 25 31 31 24 25 Greatest Support 42 | 20 20 40 20 20 20 20 27 27 42 31 31 34 34 Greatest Overweight (x) 1 | . . . . . . . . . . . . . 1 Average Overweight (x) . | . . . . . . . . . . . . . . Largest Inventory Capacity 10 | 8 8 8 5 10 5 5 5 5 5 5 5 5 5 Average Capacity 5 | 7 7 7 5 5 5 5 5 5 5 5 5 5 5 Most Carried 8 | 6 8 8 5 5 5 5 5 5 5 5 5 5 5 Average Carried 4 | 3 6 7 2 3 4 4 4 3 4 4 5 2 3 Final Capacity 8 | 8 8 5 5 5 5 5 5 5 5 5 5 5 5 Final Carried 8 | 5 8 5 3 4 4 5 5 5 5 5 5 1 3 Class Distribution -------------------- 30% | Hacker-Sprinter 26% | Mutant 16% | Sprinter 15% | Hacker-Mutant 11% | Scout Dominant Class ---------------- Mutant | -10/Materials Mutant | -9/Materials Sprinter | -8/Materials Sprinter | -7/Factory Scout | -6/Factory Scout | -6/DSF Sprinter | -5/Factory Hacker-Sprinter | -4/Factory Hacker-Sprinter | -4/Extension Hacker-Sprinter | -3/Research Hacker-Sprinter | -2/Research Hacker-Sprinter | -2/Testing Hacker-Mutant | -1/Access Resources | -11 -10 -9 -8 -7 -6 -6 -5 -4 -4 -3 -2 -2 -1 ----------- Run | Yrd Mat Mat Mat Fac Fac DSF Fac Fac Ext Res Res Tes Acc Matter Collected 620 | 189 66 103 . . 119 . . . 3 58 6 10 66 Remotely . | . . . . . . . . . . . . . . Salvage Created 333 | 63 66 136 . . . . . . . 58 . 10 . Parts 24 | 12 4 6 . . . . . . . 2 . . . Haulers Intercepted . | . . . . . . . . . . . . . . Recyclers Shooed 1 | 1 . . . . . . . . . . . . . Parts Field Recycled . | . . . . . . . . . . . . . . Retrieved Matter . | . . . . . . . . . . . . . . Parts Self-Destructed . | . . . . . . . . . . . . . . Prevented . | . . . . . . . . . . . . . . Parts Restored . | . . . . . . . . . . . . . . Kills | -11 -10 -9 -8 -7 -6 -6 -5 -4 -4 -3 -2 -2 -1 ------- Run | Yrd Mat Mat Mat Fac Fac DSF Fac Fac Ext Res Res Tes Acc Combat Hostiles Destroyed 6 | . 1 5 . . . . . . . . . . . Guns 1 | . 1 . . . . . . . . . . . . Cannons 5 | . . 5 . . . . . . . . . . . Classes Destroyed 7 | 1 2 1 . . . . . . . 2 . 1 . Worker 1 | . . . . . . . . . . 1 . . . Builder 2 | . . . . . . . . . . 2 . . . Tunneler 4 | 4 . . . . . . . . . . . . . Operator 1 | . . . . . . . . . . . . 1 . Watcher 1 | . 1 . . . . . . . . . . . . Swarmer 3 | . . 3 . . . . . . . . . . . Grunt 3 | . 1 2 . . . . . . . . . . . Best Kill Streak 4 | 4 1 4 . . . . . . . 2 . 1 . Combat Bots Only 4 | . 1 4 . . . . . . . . . . . Max Kills in Single Turn 1 | 1 1 1 . . . . . . . 1 . 1 . Gunslinging . | . . . . . . . . . . . . . . Exploded . | . . . . . . . . . . . . . . Melee . | . . . . . . . . . . . . . . Uniques/NPCs Destroyed . | . . . . . . . . . . . . . . Combat | -11 -10 -9 -8 -7 -6 -6 -5 -4 -4 -3 -2 -2 -1 -------- Run | Yrd Mat Mat Mat Fac Fac DSF Fac Fac Ext Res Res Tes Acc Hostile Shots Fired 461 | . 4 100 11 . . 3 10 . 29 . 1 26 277 Missed 190 | . . 28 7 . . 1 5 . 13 . . 15 121 Hits 271 | . 4 72 4 . . 2 5 . 16 . 1 11 156 Melee 1 | . . . . . . 1 . . . . . . . Projectile 270 | . 4 72 4 . . 1 5 . 16 . 1 11 156 AOE 2 | . . . . . . 1 . . . . . . 1 Critical Strikes 9 | . . 1 . . . 1 . . 2 . . . 5 Damage Taken 5376 | . 42 896 48 . . 59 100 . 444 . 91 251 3445 Core 1993 | . 20 212 18 . . . 28 . 86 . . 25 1604 Absorbed by Shields 12 | . . . . . . . . . 12 . . . . Regen/Repaired (Parts) 18 | . . . . . . . . 18 . . . . . Core Remaining (%) 92 | 100 92 47 96 100 . 100 97 . 92 100 . 98 . Volleys Fired 39 | 14 5 8 . 2 . . . 3 2 2 . . 3 Largest 2 | 2 2 2 . 1 . . . 1 1 1 . . 1 Hottest 136 | 60 136 136 . 5 . . . 90 90 54 . . 54 Shots Fired 66 | 28 10 16 . 2 . . . 3 2 2 . . 3 Gun 36 | 28 8 . . . . . . . . . . . . Cannon 28 | . 2 16 . . . . . 3 2 2 . . 3 Launcher . | . . . . . . . . . . . . . . Special 2 | . . . . 2 . . . . . . . . . Kinetic 23 | 14 4 . . . . . . . . 2 . . 3 Thermal 41 | 14 6 16 . . . . . 3 2 . . . . Explosive . | . . . . . . . . . . . . . . Electromagnetic . | . . . . . . . . . . . . . . Robot Hit Streak 12 | 6 5 12 . 4 . . . . . . . . . Robot Miss Streak 4 | 4 1 1 . . . . . . . . . . . Penetration Max . | . . . . . . . . . . . . . . Secondary Targets . | . . . . . . . . . . . . . . Shots Hit Robots 41 | 16 7 11 . 2 . . . . 1 3 . 1 . Core Hits 15 | 6 4 5 . . . . . . . . . . . Critical Kills . | . . . . . . . . . . . . . . Critical Parts Destroyed . | . . . . . . . . . . . . . . Critical Strikes . | . . . . . . . . . . . . . . Melee Attacks 35 | . . . 6 1 . . 9 . 3 6 . 8 2 Impact 35 | . . . 6 1 . . 9 . 3 6 . 8 2 Slashing . | . . . . . . . . . . . . . . Piercing . | . . . . . . . . . . . . . . Sneak Attacks 3 | . . . . . . . . . . 3 . . . Combat Hostiles . | . . . . . . . . . . . . . . Follow-up Attacks . | . . . . . . . . . . . . . . Damage Inflicted 834 | 161 80 225 . . . . . . 60 267 . 35 6 Guns 220 | 161 59 . . . . . . . . . . . . Cannons 246 | . 21 225 . . . . . . . . . . . Explosions . | . . . . . . . . . . . . . . Melee 362 | . . . . . . . . . 60 267 . 35 . Ramming 6 | . . . . . . . . . . . . . 6 Kinetic 65 | 50 15 . . . . . . . . . . . . Thermal 401 | 111 65 225 . . . . . . . . . . . Explosive . | . . . . . . . . . . . . . . Electromagnetic . | . . . . . . . . . . . . . . Impact 362 | . . . . . . . . . 60 267 . 35 . Slashing . | . . . . . . . . . . . . . . Piercing . | . . . . . . . . . . . . . . Highest Corruption 7 | . . . . . . . . . . . . 2 7 Average Corruption 4 | . . . . . . . . . . . . 1 4 Corruption Purged . | . . . . . . . . . . . . . . Corruption Blocked . | . . . . . . . . . . . . . . Effects 2 | . . . . . . . . . . . . . 2 Message Errors 1 | . . . . . . . . . . . . . 1 Data Loss (minor) 1 | . . . . . . . . . . . . . 1 Overload Shots . | . . . . . . . . . . . . . . Overflow Damage 152 | . . . . . . . . . . 147 . 5 . Projectiles . | . . . . . . . . . . . . . . Explosions . | . . . . . . . . . . . . . . Melee 152 | . . . . . . . . . . 147 . 5 . Knockbacks 1 | . . . . . . . . . 1 . . . . Impact 1 | . . . . . . . . . 1 . . . . Kinetic . | . . . . . . . . . . . . . . Secondary . | . . . . . . . . . . . . . . Self-Inflicted Damage 3 | . . . . . . . . . . . . . 3 Shots . | . . . . . . . . . . . . . . Rammed 1 | . . . . . . . . . . . . . 1 Targets Rammed 1 | . . . . . . . . . . . . . 1 Kicked . | . . . . . . . . . . . . . . Crushed . | . . . . . . . . . . . . . . Highest Temperature 413 | 40 75 270 16 . . . 2 48 413 . . . 29 Average Temperature 76 | 16 28 117 8 . . . 2 20 116 . . . 29 Received Heat Transfer 1182 | . 18 372 18 . . . 18 . 459 . . . 297 Effects 6 | . . 3 . . . . . . 3 . . . . Shutdowns 2 | . . . . . . . . . 2 . . . . Interference 4 | . . 3 . . . . . . 1 . . . . Siege Activations . | . . . . . . . . . . . . . . Martial Activations . | . . . . . . . . . . . . . . Shielding Activations . | . . . . . . . . . . . . . . Robots Disrupted . | . . . . . . . . . . . . . . Combat Hostiles . | . . . . . . . . . . . . . . Robots Corrupted 1 | . . . . . . . . . . . . 1 . Combat Hostiles . | . . . . . . . . . . . . . . Parts Fried 10 | . . . . . . . . . . 7 . 3 . Impact Corruptions 6 | . . . . . . . . . . 5 . 1 . Robots Melted . | . . . . . . . . . . . . . . Combat Hostiles . | . . . . . . . . . . . . . . Parts Melted . | . . . . . . . . . . . . . . Heat Transferred 794 | 250 137 407 . . . . . . . . . . . Parts Sabotaged . | . . . . . . . . . . . . . . Parts Stolen . | . . . . . . . . . . . . . . Parts Stripped . | . . . . . . . . . . . . . . Power Chain Reactions . | . . . . . . . . . . . . . . Alert | -11 -10 -9 -8 -7 -6 -6 -5 -4 -4 -3 -2 -2 -1 ------- Run | Yrd Mat Mat Mat Fac Fac DSF Fac Fac Ext Res Res Tes Acc Maximum Alert Level 2 | . . . . . . . . . 1 . . . 2 Low Security (%) 91 | 100 100 100 100 100 100 100 100 100 98 100 100 100 55 Level 1 6 | . . . . . . . . . 1 . . . 34 Level 2 1 | . . . . . . . . . . . . . 10 Level 3 . | . . . . . . . . . . . . . . Level 4 . | . . . . . . . . . . . . . . Level 5 . | . . . . . . . . . . . . . . High Security . | . . . . . . . . . . . . . . Max Security . | . . . . . . . . . . . . . . Peak Influence 431 | 5 20 106 100 83 40 10 147 28 234 129 29 36 431 Initial 122 | . . . 4 47 40 10 4 16 9 122 29 4 1 Average 63 | 1 3 39 26 53 29 10 21 9 72 89 25 16 185 Influence Increases 2127 | 20 39 175 235 66 5 . 286 38 435 40 . 80 708 Destroy 0b10 Robot/C 200 | . 20 100 . . . . . . 80 . . . . Destroy 0b10 Robot/NC 45 | 20 5 . . . . . . . . 15 . 5 . Destroy Leader 12 | . 2 10 . . . . . . . . . . . Allied During Kill 14 | . . . . . . . . . 14 . . . . Successful Hack 226 | . 12 4 23 6 5 . 73 19 18 . . 33 33 Disable Machine 120 | . . 15 30 15 . . . 15 15 . . 30 . Destroy Structure 70 | . . 1 2 . . . 18 4 8 10 . 12 15 Partial Spotted 210 | . . . 30 45 . . 15 . 45 15 . . 60 Lose Combat Pursuer 1230 | . . 45 150 . . . 180 . 255 . . . 600 Influence Decreases 1742 | 20 39 164 141 88 73 5 263 52 220 222 43 86 326 Entered New Map 288 | . . . 7 58 43 5 6 17 10 112 23 5 2 Time Decay 847 | 20 39 114 58 30 30 . 107 35 70 110 10 39 185 Lost Part 259 | . . 50 . . . . . . 60 . 10 . 139 Lost Ally 100 | . . . 20 . . . . . 80 . . . . Purge Threat 248 | . . . 56 . . . 150 . . . . 42 . Squads Dispatched 12 | . . . 1 . . 1 3 . 1 1 . 2 3 Investigation 3 | . . . . . . . 1 . . . . 1 1 Extermination 5 | . . . . . . . 1 . . 1 . 1 2 Reinforcement 4 | . . . 1 . . 1 1 . 1 . . . . Assault . | . . . . . . . . . . . . . . Garrison . | . . . . . . . . . . . . . . Intercept . | . . . . . . . . . . . . . . Searches Triggered . | . . . . . . . . . . . . . . Construction Impeded . | . . . . . . . . . . . . . . Haulers Reinforced . | . . . . . . . . . . . . . . Active Scanning Responses . | . . . . . . . . . . . . . . Cargo Convoy Interrupts . | . . . . . . . . . . . . . . Stealth | -11 -10 -9 -8 -7 -6 -6 -5 -4 -4 -3 -2 -2 -1 --------- Run | Yrd Mat Mat Mat Fac Fac DSF Fac Fac Ext Res Res Tes Acc Distress Signals 10 | . 1 3 2 . . . 1 . 2 . . . 1 Communications Jammed 18 | . . . . . . . . . . . . 12 6 Distress Signals 18 | . . . . . . . . . . . . 12 6 Times Spotted 150 | . 7 15 14 3 . 1 15 . 22 1 . 15 57 Peak Tracking Total 19 | . 3 9 13 2 . 3 6 1 17 1 1 13 19 Tactical Retreats 23 | . . 2 4 . . . 3 . 5 . . . 9 Traps | -11 -10 -9 -8 -7 -6 -6 -5 -4 -4 -3 -2 -2 -1 ------- Run | Yrd Mat Mat Mat Fac Fac DSF Fac Fac Ext Res Res Tes Acc Traps Triggered 3 | . . . . . . 1 . . . 1 . . 1 Indirectly . | . . . . . . . . . . . . . . Trap Hack Attempts . | . . . . . . . . . . . . . . Triggered . | . . . . . . . . . . . . . . Disarmed . | . . . . . . . . . . . . . . Reprogrammed . | . . . . . . . . . . . . . . Reused . | . . . . . . . . . . . . . . Traps Extracted . | . . . . . . . . . . . . . . Installed . | . . . . . . . . . . . . . . Triggered . | . . . . . . . . . . . . . . Machines | -11 -10 -9 -8 -7 -6 -6 -5 -4 -4 -3 -2 -2 -1 ---------- Run | Yrd Mat Mat Mat Fac Fac DSF Fac Fac Ext Res Res Tes Acc Machines Disabled 8 | . . 1 2 1 . . . 1 1 . . 2 . Max in Single Turn 1 | . . 1 1 1 . . . 1 . . . 1 . Garrison Access 4 | . . . 1 . . . 1 . . . . . 2 Machines Repaired . | . . . . . . . . . . . . . . Machines Dismantled . | . . . . . . . . . . . . . . Machines Sabotaged . | . . . . . . . . . . . . . . Overloaded Fab Kills . | . . . . . . . . . . . . . . Hacking | -11 -10 -9 -8 -7 -6 -6 -5 -4 -4 -3 -2 -2 -1 --------- Run | Yrd Mat Mat Mat Fac Fac DSF Fac Fac Ext Res Res Tes Acc Machines Accessed 49 | . 2 3 8 3 2 . 9 4 5 2 . 5 6 Terminals 37 | . 2 2 7 3 2 . 6 3 5 . . 3 4 Fabricators 3 | . . . . . . . . . . 2 . 1 . Repair Stations 2 | . . . . . . . 1 1 . . . . . Recycling Units . | . . . . . . . . . . . . . . Scanalyzers 3 | . . 1 . . . . 1 . . . . 1 . Garrison Access 4 | . . . 1 . . . 1 . . . . . 2 Total Hacks 134 | . 6 6 29 5 3 . 35 8 7 3 . 20 12 Successful 70 | . 3 4 12 1 1 . 21 4 4 1 . 14 5 Failed 61 | . 2 2 16 4 2 . 13 4 3 2 . 6 7 Catastrophic 10 | . . . 1 . 1 . 2 . 2 . . 1 3 Database Lockouts 3 | . 1 . 1 . . . 1 . . . . . . Manual 65 | . 9 3 21 3 2 . 10 2 1 . . 9 5 Terminals 95 | . 6 5 28 5 3 . 15 5 7 . . 12 9 Fabricators 5 | . . . . . . . . . . 3 . 2 . Repair Stations 6 | . . . . . . . 3 3 . . . . . Recycling Units . | . . . . . . . . . . . . . . Scanalyzers 23 | . . 1 . . . . 16 . . . . 6 . Garrison Access 5 | . . . 1 . . . 1 . . . . . 3 Terminal Hacks 26 | . 1 1 7 . 1 . 2 2 4 . . 6 2 Record 3 | . . . . . . . 1 . . . . . 2 Part Schematic 2 | . 1 . 1 . . . . . . . . . . Robot Analysis 2 | . . . 2 . . . . . . . . . . Prototype ID Bank 1 | . . . . . . . . . . . . 1 . Open Door 5 | . . . . . . . . 1 4 . . . . Open DSF 2 | . . . . . 1 . . 1 . . . . . Level Access Points 2 | . . . 1 . . . . . . . . 1 . Emergency Access Points 2 | . . . 1 . . . . . . . . 1 . Terminal Index 1 | . . . . . . . . . . . . 1 . Unreport Threat 5 | . . . 2 . . . 1 . . . . 2 . Locate Traps 1 | . . 1 . . . . . . . . . . . Fabricator Hacks 3 | . . . . . . . . . . 1 . 2 . Load Schematic 2 | . . . . . . . . . . 1 . 1 . Build 1 | . . . . . . . . . . . . 1 . Repair Station Hacks 3 | . . . . . . . 1 2 . . . . . Scan Component 1 | . . . . . . . . 1 . . . . . Repair 1 | . . . . . . . . 1 . . . . . Refit 1 | . . . . . . . 1 . . . . . . Recycling Unit Hacks . | . . . . . . . . . . . . . . Scanalyzer 18 | . . 1 . . . . 13 . . . . 4 . Insert Component 5 | . . . . . . . 5 . . . . . . Analyze 7 | . . . . . . . 7 . . . . . . Retrieve Study 6 | . . 1 . . . . 1 . . . . 4 . Garrison Access Hacks 4 | . . . 1 . . . 1 . . . . . 2 Seal Access 4 | . . . 1 . . . 1 . . . . . 2 Unauthorized Hacks 16 | . 2 2 4 1 . . 4 . . . . 2 1 Terminals 16 | . 2 2 4 1 . . 4 . . . . 2 1 Assimilate 3 | . . . 2 1 . . . . . . . . . Botnet 13 | . 2 2 2 . . . 4 . . . . 2 1 Fabricators . | . . . . . . . . . . . . . . Repair Stations . | . . . . . . . . . . . . . . Recycling Units . | . . . . . . . . . . . . . . Scanalyzers . | . . . . . . . . . . . . . . Garrison Access . | . . . . . . . . . . . . . . Data Cores Recovered 1 | . . . . . . . . . . . . 1 . Used . | . . . . . . . . . . . . . . Hacking Detections 38 | . 2 2 7 2 2 . 7 3 3 2 . 4 4 Full Trace Events 3 | . . . . . . . 1 . . . . 1 1 Feedback Events . | . . . . . . . . . . . . . . Feedback Blocked . | . . . . . . . . . . . . . . Robot Schematics Acquired . | . . . . . . . . . . . . . . Robots Built . | . . . . . . . . . . . . . . Authchips . | . . . . . . . . . . . . . . Time . | . . . . . . . . . . . . . . Total Robot Build Rating . | . . . . . . . . . . . . . . Part Schematics Acquired 7 | . 1 . 1 . . . 5 . . . . . . Parts Built . | . . . . . . . . . . . . . . Authchips . | . . . . . . . . . . . . . . Time 73 | . . . . . . . . . . . . 73 . Total Part Build Rating . | . . . . . . . . . . . . . . Part Studies Acquired 6 | . . 1 . . . . 1 . . . . 4 . Parts Repaired 1 | . . . . . . . . 1 . . . . . Time 16 | . . . . . . . . 16 . . . . . Parts Recycled . | . . . . . . . . . . . . . . Recycled Matter . | . . . . . . . . . . . . . . Retrieved Matter . | . . . . . . . . . . . . . . Retrieved Components . | . . . . . . . . . . . . . . Parts Scanalyzed 5 | . . . . . . . 5 . . . . . . Part Schematics Acquired 5 | . . . . . . . 5 . . . . . . Parts Damaged . | . . . . . . . . . . . . . . Bothacking | -11 -10 -9 -8 -7 -6 -6 -5 -4 -4 -3 -2 -2 -1 ------------ Run | Yrd Mat Mat Mat Fac Fac DSF Fac Fac Ext Res Res Tes Acc Used RIF Installer . | . . . . . . . . . . . . . . Robots Hacked 1 | . . . . 1 . . . . . . . . . Non-combat 1 | . . . . 1 . . . . . . . . . Combat . | . . . . . . . . . . . . . . Robot Hacks Applied 1 | . . . . 1 . . . . . . . . . parse_system 1 | . . . . 1 . . . . . . . . . Relay Couplers Released . | . . . . . . . . . . . . . . Fabnet Peak Effective % . | . . . . . . . . . . . . . . Robots Rewired . | . . . . . . . . . . . . . . Allies Hacked . | . . . . . . . . . . . . . . Hacks Repelled . | . . . . . . . . . . . . . . Allies | -11 -10 -9 -8 -7 -6 -6 -5 -4 -4 -3 -2 -2 -1 -------- Run | Yrd Mat Mat Mat Fac Fac DSF Fac Fac Ext Res Res Tes Acc Total Allies 10 | . . . 2 1 . . . . 7 . . . . Largest Group 4 | . . . 1 1 . . . . 4 . . . . Highest-Rated Group 302 | . . . 10 10 . . . . 302 . . . . Highest-Rated Ally 159 | . . . 10 10 . . . . 159 . . . . Total Orders . | . . . . . . . . . . . . . . Ally Attacks 25 | . . . . . . . . . 25 . . . . Total Damage 759 | . . . . . . . . . 759 . . . . Kills 4 | . . . . . . . . . 4 . . . . Allies Corrupted . | . . . . . . . . . . . . . . Allies Melted . | . . . . . . . . . . . . . . Intel | -11 -10 -9 -8 -7 -6 -6 -5 -4 -4 -3 -2 -2 -1 ------- Run | Yrd Mat Mat Mat Fac Fac DSF Fac Fac Ext Res Res Tes Acc Active Infowar (turns) 1737 | 53 21 . 128 76 61 26 317 138 154 238 22 98 405 Optics 330 | . . . . . . . . . . . . . 330 Sensors 1333 | . . . 128 76 61 26 317 138 154 238 22 98 75 IFF 177 | . . . . . 41 26 110 . . . . . . Seismic 74 | 53 21 . . . . . . . . . . . . Jamming 171 | . . . . . . . . 17 . 56 22 16 60 Robot Analysis Total 2 | . . . 2 . . . . . . . . . . Derelict Logs Recovered . | . . . . . . . . . . . . . . Drone Launches . | . . . . . . . . . . . . . . Drone Recoveries . | . . . . . . . . . . . . . . Exploration | -11 -10 -9 -8 -7 -6 -6 -5 -4 -4 -3 -2 -2 -1 ------------- Run | Yrd Mat Mat Mat Fac Fac DSF Fac Fac Ext Res Res Tes Acc Turns Passed 2387 | 116 172 363 156 76 61 26 317 138 154 238 22 98 450 Spaces Moved 4937 | 48 115 232 367 241 206 34 1051 375 436 580 79 267 906 Core 571 | 10 . 33 . . . . . . . . . . 528 Treads 86 | . . 86 . . . . . . . . . . . Legs 266 | 38 115 113 . . . . . . . . . . . Wheels . | . . . . . . . . . . . . . . Hover 1 | . . . . . . . . . . . . . 1 Flight 4013 | . . . 367 241 206 34 1051 375 436 580 79 267 377 Fastest Speed 22 | 50 120 50 26 26 26 26 25 25 22 28 28 28 28 Average Speed 37 | 105 120 124 26 26 26 26 25 25 27 30 28 28 43 Slowest Speed 160 | 120 120 160 35 26 26 26 26 28 32 32 28 28 100 Overloaded Moves . | . . . . . . . . . . . . . . Propulsion Burnouts . | . . . . . . . . . . . . . . Robots Hopped 94 | . . . 16 2 9 2 14 6 32 3 . 8 2 Potential Cave-ins . | . . . . . . . . . . . . . . Cave-ins Triggered . | . . . . . . . . . . . . . . Exploration Rate (%) 25 | 3 27 27 50 9 10 42 34 10 64 14 2 34 33 Regions Visited 13 Branch Regions 2 Pre-discovered Areas . | . . . . . . . . . . . . . . Known Exits Taken 9 | . . . 1 1 1 . 1 1 1 1 1 1 . Unknown Exits Taken 3 | 1 1 1 . . . . . . . . . . . Scrap Searched . | . . . . . . . . . . . . . . Spaces Dug 27 | . . . 2 . . . 9 2 1 5 . 4 4 Terrain Destroyed 29 | . . . 2 . . . 9 2 2 5 . 4 5 Melee 20 | . . . 2 . . . 9 . . 3 . 4 2 Projectile 9 | . . . . . . . . 2 2 2 . . 3 AOE . | . . . . . . . . . . . . . . Terrain Rammed . | . . . . . . . . . . . . . . Walls Destroyed . | . . . . . . . . . . . . . . Machines Disabled . | . . . . . . . . . . . . . . Actions | -11 -10 -9 -8 -7 -6 -6 -5 -4 -4 -3 -2 -2 -1 --------- Run | Yrd Mat Mat Mat Fac Fac DSF Fac Fac Ext Res Res Tes Acc Total 5254 | 85 141 294 398 249 203 48 1068 409 432 625 78 271 953 Wait 135 | 8 6 33 25 1 . 1 1 21 18 8 . 1 12 Move 4741 | 47 114 231 334 236 188 29 1022 363 374 573 78 250 902 Hop 89 | . . . 16 2 8 2 14 5 29 3 . 8 2 Pick Up 49 | 7 6 7 5 1 2 1 8 1 2 4 . . 5 Fast Attach 33 | 6 2 . 3 2 2 . 3 3 1 3 . . 8 Attach 29 | 1 . 2 7 1 . . 1 4 2 2 . 1 8 Detach 17 | . 1 . 1 2 . . . 4 . 2 . . 7 Swap 15 | 1 2 1 . . 1 . 2 3 . 5 . . . Drop 41 | 1 5 12 1 1 2 . 8 2 1 2 . 3 3 Fire 39 | 14 5 8 . 2 . . . 3 2 2 . . 3 Melee 35 | . . . 6 1 . . 9 . 3 6 . 8 2 Ram 1 | . . . . . . . . . . . . . 1 Kick . | . . . . . . . . . . . . . . Crush . | . . . . . . . . . . . . . . Escape Stasis 30 | . . . . . . 15 . . . 15 . . . Rewire . | . . . . . . . . . . . . . . Trap . | . . . . . . . . . . . . . . Miscellaneous . | . . . . . . . . . . . . . . Route ------- -11/Scrapyard -10/Materials -9/Materials -8/Materials (discovered 3 exits: *Fac x3) -7/Factory -6/Factory -6/DSF -5/Factory -4/Factory (discovered 2 exits: *Ext / DSF) -4/Extension (discovered 2 exits: *Res / *Cet) -3/Research -2/Research -2/Testing -1/Access History --------- Turn | Location | Event 14 | -11/Scrapyard | Discovered new exit (range 16) 117 | -11/Scrapyard | Entered Materials 127 | -10/Materials | Central database locked down 271 | -10/Materials | Discovered new exit (range 10) 289 | -10/Materials | Entered another Materials area 289 | -9/Materials | Evolved 2 slots: Propulsion x2 316 | -9/Materials | Build established: Mutant 642 | -9/Materials | Core integrity fell below 50% 644 | -9/Materials | Discovered new exit (range 6) 652 | -9/Materials | Entered another Materials area 652 | -8/Materials | Evolved 2 slots: Utility x2 683 | -8/Materials | Lost 5 parts (1p4n) 752 | -8/Materials | Identified exit to Factory 758 | -8/Materials | Central database locked down 808 | -8/Materials | Entered Factory 808 | -7/Factory | Evolved 2 slots: Propulsion x1, Utility x1 878 | -7/Factory | Discovered new exit (range 8) 879 | -7/Factory | Identified exit to Factory 884 | -7/Factory | Entered another Factory area 884 | -6/Factory | Evolved 2 slots: Utility x2 945 | -6/Factory | Identified exit to DSF 945 | -6/Factory | Entered DSF 967 | -6/DSF | Discovered new exit (range 13) 971 | -6/DSF | Identified exit to Factory 971 | -6/DSF | Entered Factory 971 | -5/Factory | Evolved 2 slots: Power x1, Propulsion x1 1253 | -5/Factory | Central database locked down 1283 | -5/Factory | Discovered new exit (range 15) 1286 | -5/Factory | Identified exit to Factory 1288 | -5/Factory | Entered another Factory area 1288 | -4/Factory | Evolved 2 slots: Propulsion x1, Utility x1 1309 | -4/Factory | Repaired VTOL Module+ 1383 | -4/Factory | Discovered new exit (range 6) 1384 | -4/Factory | Identified exit to Extension 1418 | -4/Factory | Identified exit to DSF 1426 | -4/Factory | Entered Extension 1439 | -4/Extension | Rescued a captive Derelict 1441 | -4/Extension | Rescued a captive Derelict 1501 | -4/Extension | Rescued A7 1509 | -4/Extension | Spotted B-86 Titan 1511 | -4/Extension | Spotted B-86 Titan 1529 | -4/Extension | Rescued a captive Derelict 1530 | -4/Extension | Rescued a captive Derelict 1547 | -4/Extension | Lost 6 parts (1p3n1u1w) 1567 | -4/Extension | Rescued a captive Derelict 1568 | -4/Extension | Rescued a captive Derelict 1575 | -4/Extension | Discovered new exit (range 10) 1575 | -4/Extension | Discovered new exit (range 6) 1577 | -4/Extension | Identified exit to Cetus 1578 | -4/Extension | Identified exit to Research 1580 | -4/Extension | Entered Research 1580 | -3/Research | Evolved 2 slots: Propulsion x1, Utility x1 1598 | -3/Research | Build established: Hacker-Sprinter 1787 | -3/Research | Discovered new exit (range 9) 1790 | -3/Research | Identified exit to Research 1818 | -3/Research | Entered another Research area 1818 | -2/Research | Evolved 2 slots: Utility x2 1829 | -2/Research | Discovered new exit (range 5) 1830 | -2/Research | Identified exit to Testing 1840 | -2/Research | Entered Testing 1842 | -2/Testing | Identified exit to Access 1938 | -2/Testing | Entered Access 1938 | -1/Access | Evolved 2 slots: Propulsion x1, Utility x1 2052 | -1/Access | Lost 11 parts (6n4u1w) 2197 | -1/Access | Core integrity fell below 50% 2217 | -1/Access | Spotted B-99 Colossus 2304 | -1/Access | Core integrity fell below 20% 2329 | -1/Access | Build established: Hacker-Mutant 2388 | -1/Access | Destroyed by S-43 Plague with Heavy Machine Gun Last Messages --------------- 02292_ >WFAUIVUK,J6E6N81VLESHFU# 02295_ P-80 Master resets P-80 Master, system corruption cleaned. 02301_ ALERT: Potential suspicious activity detected, Programmers report to Access Zone 6H. 02304_ Critical hit (Burn: +37). 02360_ Slammed into S-43 Plague. 02360_ P-80 Master resets S-43 Plague, system corruption cleaned. 02365_ Connecting with Terminal... 02365_ ALERT: Suspicious activity at Terminal A014. Dispatching Investigation squad. 02368_ U-05 Engineer builds a Wall. 02375_ Hacking Suite destroyed. 02379_ Penetrated by Slug. 02379_ Adv. Medium Treads destroyed. 02381_ Slug penetrates Wall. 02382_ Penetrated by Slug. 02382_ Biometal Heavy Treads destroyed. 02388_ System corrupted: Component data lost. Map ----- +----------------------------------------------------+ | ?????????????????????????????????????????????????? | | ??? ??????????????????????????????????????????? | | ???# ??????????????????????????????????????????? | | ???# ??????????????????????????????????????????? | | ???# ??????????????????????????????????????????? | | ???# ??????????????????????????????????????????? | | ???# ??????????????????????????????????????????? | | ???# ??????????????????????????????????????????? | | ???# ??????????????????????????????????????????? | | ???+ +?????????????????????????????????????????? | | ???# #?????????????????????????????????????????? | | ???# #?????????????????????????????????????????? | | ???# #?????????????????????????????????????????? | | ???# #??????#+#????????????????????????????????? | | ???# #??????# #????????????????????????????????? | | #### #??????# #???????????????? #??????????????? | | #??????# #??????????????? #??????????????? | | ######## #?????????????? #??????????????? | | #####+######### #??????????????? | | #??????????????? | | #??????????????? | | #### ks +??????????????? | | #??# ########+### s t""" #??????????????? | | #??# #????? # ss ""T"" #???????????????? | | ####+###? # "" "" #???????????????? | | # ## # @ #???????????????? | | # ## # #???????????????? | | # ## # m #???????????????? | | " ## # ????????????? | | # ## # ?????????? | | # ## # ??????? | | ########### = # #######+############?????? | | ??????????# #######????????????????????????? | | ??????????# #??????????????????????????????? | | ??????????#########??????????????????????????????? | | ?????????????????????????????????????????????????? | | ?????????????????????????????????????????????????? | | ?????????????????????????????????????????????????? | | ?????????????????????????????????????????????????? | | ?????????????????????????????????????????????????? | | ?????????????????????????????????????????????????? | | ?????????????????????????????????????????????????? | | ?????????????????????????????????????????????????? | | ?????????????????????????????????????????????????? | | ?????????????????????????????????????????????????? | | ?????????????????????????????????????????????????? | | ?????????????????????????????????????????????????? | | ?????????????????????????????????????????????????? | | ?????????????????????????????????????????????????? | | ?????????????????????????????????????????????????? | +----------------------------------------------------+ Best States ------------- Heat Dissipation 79 Energy Generation 34 Energy Capacity 250 Matter Stores 300 Matter Capacity 300 Sight Range 22 Robot Scan Range 16 Terrain Scan Density 210 Jamming Range 16 Armor Coverage 150 Phase Shifting 10 Evasion (%) 75 Targeting Accuracy 5 Recoil Reduction 2 Offensive Hacking 20 Defensive Hacking 10 Item Schematics ----------------- Lrg. Storage Unit | -10/Materials | Hacked Hacking Suite | -8/Materials | Hacked Med. Storage Unit | -5/Factory | Scanalyzed Lgt. Angular Momentum Engine | -5/Factory | Scanalyzed Imp. Light Armor Plating | -5/Factory | Scanalyzed Hvy. Plasma Cannon | -5/Factory | Scanalyzed Imp. Cooling System | -5/Factory | Scanalyzed Robot Schematics ------------------ None Fabricated ------------ Nothing Repaired ---------- VTOL Module | 28% | -4/Factory Studied --------- VTOL Module | -9/Materials | Hacked Hvy. Plasma Cannon | -5/Factory | Hacked Field Propulsion Drive | -2/Testing | Hacked Lgt. Antimatter Reactor | -2/Testing | Hacked Impulse Thruster | -2/Testing | Hacked Hvy. Flail | -2/Testing | Hacked Alien Tech Used ----------------- None Achievements -------------- None Challenges ------------ None Game ------ Seed CombatNullReplicator Manual? 0 Play Time 01:16:31 Cumulative 120.8 hours Start 2026.03.23 @ 15:35:48 End 2026.03.23 @ 17:11:09 Sessions 1 Manual Loads 0 Difficulty Rogue Special Mode None Game No. 65 Rogue 41 Adventurer 9 Explorer 15 Win Type - Total 17 Types 14/0/2/1/0/0/0/0/0/0 Lore% 52 Gallery% 53 Achievement% 51 Wizard Run 0 Options --------- Layout 1 ASCII 0 Keyboard 1 Movement Vi Keybinds 0 Fullscreen 1 Font 18/SmallcapsGlow Map View 51x43 Zoom Use 0% Tactical HUD 1 Map Filters NONE Filters NONE Steam 1 RUN: cf2d2bc4-f8dc-4855-9ca4-bb3d722c3d4f